bitfinex/quotes_SOLUSD_20241118
["timestamp","ask_amount","ask_price","bid_price","bid_amount"]
[1731961802373,0.5,239.27,239.24,24.23988149]
[1731961802574,0.5,239.26,239.24,24.23988149]
[1731961802978,0.5,239.23,239.22,20.06018149]
[1731961803280,1.0,239.19,239.18,20.06018149]
[1731961803869,0.5,239.19,239.18,20.06018149]
[1731961804167,1.0,239.19,239.18,20.06018149]
[1731961804793,0.5,239.19,239.18,20.06018149]
[1731961804973,0.5,239.23,239.19,14.6326]
[1731961805278,0.5,239.2,239.19,20.06018149]
[1731961805488,1.0,239.2,239.19,20.06018149]
[1731961805987,0.5,239.18,239.17,20.06018149]
[1731961807012,0.5,239.22,239.18,4.1809]
[1731961807218,0.5,239.2,239.19,20.89597686]
[1731961807806,1.0,239.2,239.17,20.06018149]
[1731961808112,0.5,239.18,239.17,20.06018149]
[1731961808619,1.0,239.18,239.17,20.06018149]
[1731961808826,1.0,239.18,239.16,0.4728558]
[1731961809115,20.06018149,239.17,239.16,0.4728558]
[1731961809694,5.1809,239.18,239.16,0.4728558]
[1731961810097,20.06018149,239.17,239.16,0.4728558]
[1731961810491,5.1809,239.18,239.16,0.4728558]
[1731961811908,1.0,239.18,239.17,20.06018149]
[1731961812206,1.0,239.18,239.16,0.4728558]
[1731961813599,0.5,239.18,239.16,0.4728558]
[1731961813807,0.5,239.18,239.17,20.06018149]
[1731961814424,1.0,239.18,239.16,0.4728558]
[1731961815128,21.06018149,239.18,239.16,0.4728558]
[1731961815318,0.09367462,239.17,239.16,0.4728558]
[1731961815719,4.40026462,239.17,239.16,0.4728558]
[1731961816119,4.80659,239.17,239.16,0.4728558]
[1731961816302,4.30659,239.17,239.16,0.4728558]
[1731961817203,74.62462011,239.17,239.16,0.4728558]
[1731961817501,0.5,239.0,238.94,17.2334]
[1731961817737,0.5,238.96,238.94,47.75608149]
[1731961818422,1.0,238.93,238.92,0.4728558]
[1731961819404,0.5,238.93,238.92,0.4728558]
[1731961819619,0.5,238.97,238.93,14.6486]
[1731961819822,0.5,239.05,238.96,20.06018149]
[1731961820009,0.5,239.05,238.94,8.10378626]
[1731961820010,0.5,239.01,238.97,0.83630189]
[1731961820611,0.5,238.94,238.92,0.4728558]
[1731961821734,0.5,238.94,238.92,20.53303729]
[1731961822428,0.5,238.94,238.92,0.4728558]
[1731961823115,0.5,238.94,238.93,20.06018149]
[1731961823321,0.5,238.96,238.93,20.06018149]
[1731961823628,0.5,238.96,238.95,20.06018149]
[1731961824426,20.06018149,239.03,238.92,0.4728558]
[1731961824427,0.5,238.94,238.92,0.4728558]
[1731961825418,0.5,238.93,238.92,0.4728558]
[1731961825717,20.56018149,238.93,238.92,0.4728558]
[1731961826031,24.96464611,238.93,238.92,0.4728558]
[1731961826329,24.87097149,238.93,238.92,0.4728558]
[1731961826534,4.6853,238.93,238.92,0.4728558]
[1731961826942,24.83915611,238.93,238.92,0.4728558]
[1731961827422,4.6853,238.93,238.92,0.4728558]
[1731961827817,0.5,238.94,238.92,0.4728558]
[1731961828025,0.5,238.93,238.92,0.4728558]
[1731961829326,0.5,238.94,238.92,0.4728558]
[1731961829537,0.5,238.94,238.92,20.53303729]
[1731961830140,0.5,238.94,238.92,0.4728558]
[1731961830742,0.5,238.93,238.92,0.4728558]
[1731961832354,0.71916462,238.93,238.92,0.4728558]
[1731961833140,0.84465462,238.93,238.92,0.4728558]
[1731961836019,19.27465462,238.93,238.92,0.4728558]
[1731961836232,43.55153862,238.93,238.92,0.4728558]
[1731961836542,63.61172011,238.93,238.92,0.4728558]
[1731961836745,84.11172011,238.93,238.92,0.4728558]
[1731961837456,1.09367462,238.86,238.85,0.22770046]
[1731961837766,21.90483611,238.86,238.85,0.22770046]
[1731961837931,45.68172011,238.86,238.85,0.22770046]
[1731961839159,21.06018149,238.86,238.85,0.22770046]
[1731961840267,1.0,238.86,238.85,0.22770046]
[1731961841865,0.5,238.86,238.85,0.22770046]
[1731961842161,1.0,238.86,238.85,0.22770046]
[1731961845260,0.5,238.86,238.85,0.22770046]
[1731961845463,0.5,238.91,238.86,14.6528]
[1731961845764,0.5,238.96,238.91,17.4019]
[1731961846063,0.5,238.94,238.93,20.06018149]
[1731961846652,0.5,238.96,238.93,20.06018149]
[1731961847349,0.5,238.94,238.93,20.06018149]
[1731961847548,0.5,238.96,238.93,24.24548149]
[1731961847746,0.5,238.96,238.95,20.06018149]
[1731961848066,0.5,239.01,238.95,20.06018149]
[1731961848366,0.5,239.01,238.93,14.6486]
[1731961848367,1.0,239.01,238.98,20.06018149]
[1731961848569,0.5,239.05,239.0,20.06018149]
[1731961848766,0.5,239.08,239.04,20.06018149]
[1731961849060,0.5,239.08,239.06,20.06018149]
[1731961849261,0.5,239.13,239.07,20.0]
[1731961849466,0.5,239.17,239.11,20.06018149]
[1731961849467,0.5,239.15,239.11,20.06018149]
[1731961849665,0.5,239.15,239.13,20.06018149]
[1731961849844,0.5,239.21,239.14,20.0]
[1731961850039,0.5,239.23,239.2,20.06018149]
[1731961850259,0.5,239.25,239.22,20.06018149]
[1731961850450,0.5,239.24,239.16,20.06018149]
[1731961850658,0.5,239.24,239.23,20.06018149]
[1731961851255,1.0,239.24,239.21,30.51078149]
[1731961851452,0.5,239.16,239.15,41.96388149]
[1731961851676,0.5,239.16,239.15,10.4535]
[1731961852873,0.5,239.16,238.92,20.06018149]
[1731961852874,1.0,239.13,238.98,1.68978792]
[1731961853074,1.0,239.13,239.09,20.0]
[1731961853373,1.0,239.13,239.11,24.1821]
[1731961853374,0.5,239.13,239.11,24.1821]
[1731961854350,0.5,239.08,239.06,20.06018149]
[1731961854560,0.5,239.05,239.03,10.4587]
[1731961854960,0.5,239.04,239.03,10.4587]
[1731961855166,0.5,239.02,239.0,4.1841]
[1731961855882,0.5,239.0,238.99,20.06018149]
[1731961856081,0.5,238.98,238.96,14.6463]
[1731961856259,0.5,238.98,238.96,34.70648149]
[1731961856451,0.5,239.0,238.96,34.70648149]
[1731961856657,0.5,239.13,239.0,20.06018149]
[1731961856658,0.5,239.01,239.0,20.06018149]
[1731961856882,0.5,238.99,238.98,20.06018149]
[1731961857183,0.5,238.97,238.96,34.70648149]
[1731961858075,0.5,238.97,238.96,10.4616]
[1731961858261,0.5,238.91,238.9,10.4642]
[1731961858579,0.5,238.86,238.85,0.22770046]
[1731961860504,0.5,238.91,238.87,20.0]
[1731961860669,0.5,238.95,238.91,20.0]
[1731961860992,0.5,238.93,238.9,20.06018149]
[1731961861170,0.5,238.89,238.87,20.0]
[1731961861572,0.5,238.87,238.86,14.6528]
[1731961861890,0.5,238.86,238.85,0.22770046]
[1731961862413,20.56018149,238.86,238.85,0.22770046]
[1731961862597,0.5,238.86,238.85,0.22770046]
[1731961862762,0.5,238.87,238.85,4.41430046]
[1731961862965,0.5,238.89,238.86,20.06018149]
[1731961863172,0.5,238.87,238.86,20.06018149]
[1731961863681,0.5,238.87,238.85,14.88110046]
[1731961864087,0.5,238.86,238.85,0.22770046]
[1731961864673,1.0,238.87,238.85,4.41430046]
[1731961864872,0.5,238.87,238.85,4.41430046]
[1731961865073,0.5,238.87,238.85,34.94128195]
[1731961865277,0.5,238.89,238.85,34.94128195]
[1731961865470,0.5,238.88,238.85,78.71816595]
[1731961865669,1.0,238.86,238.85,0.22770046]
[1731961865888,21.31116149,238.86,238.85,0.22770046]
[1731961866088,46.18172011,238.86,238.85,0.22770046]
[1731961866304,46.18172011,238.86,238.68,0.4728558]
[1731961866305,1.0,238.7,238.68,0.4728558]
[1731961868501,1.0,238.72,238.69,20.06018149]
[1731961868702,0.5,238.76,238.71,63.83706549]
[1731961868904,0.5,238.76,238.68,59.8620398]
[1731961868905,0.5,238.76,238.75,20.06018149]
[1731961869303,0.5,238.78,238.75,43.83706549]
[1731961869492,0.5,238.78,238.77,20.06018149]
[1731961869695,0.5,238.76,238.75,30.53098149]
[1731961869897,1.0,238.76,238.75,10.4708]
[1731961870215,1.0,238.74,238.73,20.06018149]
[1731961870428,0.5,238.72,238.7,4.1893]
[1731961870597,0.5,238.72,238.71,20.06018149]
[1731961870792,0.5,238.74,238.71,20.06018149]
[1731961870998,1.0,238.81,238.73,20.06018149]
[1731961871292,0.5,238.82,238.79,20.06018149]
[1731961871510,1.0,238.81,238.8,20.06018149]
[1731961871715,0.5,238.81,238.8,24.24778149]
[1731961871904,1.0,238.81,238.8,24.24778149]
[1731961872105,1.0,238.81,238.8,4.1876]
[1731961873607,1.0,238.85,238.8,58.433484]
[1731961873815,0.5,238.83,238.82,20.06018149]
[1731961874010,0.5,238.83,238.82,63.83706549]
[1731961875198,1.0,238.76,238.75,14.6594]
[1731961875398,0.5,238.76,238.75,14.6594]
[1731961875625,1.0,238.76,238.75,14.6594]
[1731961876116,0.5,238.76,238.75,34.71958149]
[1731961876311,0.5,238.78,238.75,34.71958149]
[1731961876509,1.0,238.78,238.75,34.71958149]
[1731961876692,0.5,238.78,238.75,34.71958149]
[1731961876897,0.5,238.82,238.79,23.776884]
[1731961877095,0.5,238.8,238.79,43.83706549]
[1731961877301,1.0,238.8,238.79,4.1877]
[1731961877519,1.0,238.78,238.76,20.0]
[1731961878027,0.5,238.78,238.76,20.0]
[1731961878402,1.0,238.78,238.76,20.0]
[1731961878599,0.5,238.78,238.76,20.0]
[1731961878805,24.24678149,238.86,238.75,38.436284]
[1731961878806,1.0,238.76,238.75,38.436284]
[1731961879635,1.0,238.78,238.76,23.776884]
[1731961880698,1.0,238.76,238.75,10.471]
[1731961881337,0.5,238.7,238.69,14.6629]
[1731961882447,0.5,238.7,238.69,38.439784]
[1731961883241,0.5,238.73,238.7,43.776884]
[1731961883534,0.5,238.73,238.72,43.83706549]
[1731961883737,0.5,238.71,238.7,40.06018149]
[1731961883915,1.0,238.69,238.68,0.4728558]
[1731961886327,21.06018149,238.69,238.68,0.4728558]
[1731961887628,41.4650176,238.69,238.68,0.4728558]
[1731961887842,69.2344176,238.69,238.68,0.4728558]
[1731961888040,93.0113016,238.69,238.68,0.4728558]
[1731961888213,93.0113016,238.69,238.59,0.09367462]
[1731961888214,1.0,238.6,238.59,0.09367462]
[1731961888418,21.27934611,238.6,238.59,0.09367462]
[1731961888843,21.77934611,238.6,238.59,0.09367462]
[1731961889437,26.09593611,238.6,238.59,0.09367462]
[1731961889653,46.09593611,238.6,238.59,0.09367462]
[1731961891533,25.47044611,238.6,238.59,0.09367462]
[1731961893756,21.06018149,238.6,238.59,0.09367462]
[1731961894267,1.0,238.6,238.59,0.09367462]
[1731961895738,1.0,238.6,238.59,23.87055862]
[1731961896064,1.0,238.6,238.59,0.09367462]
[1731961896688,21.06018149,238.6,238.59,0.09367462]
[1731961897257,21.15385611,238.6,238.59,0.09367462]
[1731961897466,21.27934611,238.6,238.59,0.09367462]
[1731961897868,21.90483611,238.6,238.59,0.09367462]
[1731961898679,21.40483611,238.6,238.59,0.09367462]
[1731961899266,22.40483611,238.6,238.59,0.09367462]
[1731961899475,21.40483611,238.6,238.59,0.09367462]
[1731961900004,21.90483611,238.6,238.59,0.09367462]
[1731961900773,21.40483611,238.6,238.59,0.09367462]
[1731961902383,21.27934611,238.6,238.59,0.09367462]
[1731961902690,21.06018149,238.6,238.59,0.09367462]
[1731961902861,21.15385611,238.6,238.59,0.09367462]
[1731961903765,1.0,238.45,238.41,4.1944]
[1731961903985,21.06018149,238.45,238.39,14.6813]
[1731961904169,21.06018149,238.45,238.4,4.1945]
[1731961904367,21.06018149,238.45,238.39,10.4867]
[1731961904569,21.06018149,238.45,238.41,4.1943]
[1731961905490,1.0,238.45,238.4,20.0]
[1731961905691,1.0,238.45,238.43,4.1939]
[1731961906291,1.0,238.45,238.44,24.2497398]
[1731961906498,1.0,238.45,238.44,0.4728558]
[1731961907291,21.06018149,238.45,238.44,0.4728558]
[1731961908376,1.0,238.45,238.44,0.4728558]
[1731961909686,1.09367462,238.45,238.44,0.4728558]
[1731961910202,1.0,238.45,238.44,0.4728558]
[1731961911011,21.06018149,238.45,238.44,0.4728558]
[1731961911805,21.15385611,238.45,238.44,0.4728558]
[1731961912226,21.06018149,238.45,238.44,0.4728558]
[1731961912927,21.15385611,238.45,238.44,0.4728558]
[1731961913229,21.27934611,238.45,238.44,0.4728558]
[1731961913634,21.15385611,238.45,238.44,0.4728558]
[1731961914628,21.06018149,238.45,238.44,0.4728558]
[1731961916330,21.27934611,238.45,238.44,0.4728558]
[1731961917736,21.15385611,238.45,238.44,0.4728558]
[1731961919859,21.06018149,238.45,238.44,0.4728558]
[1731961920033,1.0,238.45,238.44,0.4728558]
[1731961920351,13.66096575,238.45,238.44,0.4728558]
[1731961922254,1.0,238.45,238.44,0.4728558]
[1731961922448,0.5,238.49,238.46,23.776884]
[1731961922654,1.0,238.47,238.46,23.776884]
[1731961922849,1.0,238.49,238.46,23.776884]
[1731961923157,1.0,238.47,238.46,23.776884]
[1731961923535,1.0,238.49,238.46,23.776884]
[1731961923836,1.09367462,238.45,238.44,0.4728558]
[1731961924031,13.75464037,238.45,238.44,0.4728558]
[1731961924432,13.66096575,238.45,238.44,0.4728558]
[1731961924642,1.0,238.45,238.44,0.4728558]
[1731961925434,1.0,238.49,238.44,24.2497398]
[1731961925765,0.5,238.48,238.45,27.33896575]
[1731961926060,0.5,238.48,238.46,23.776884]
[1731961926465,0.5,238.48,238.46,36.43784975]
[1731961926652,1.0,238.57,238.49,0.12549]
[1731961926837,17.9979,238.72,238.49,0.12549]
[1731961926838,0.5,238.6,238.57,43.776884]
[1731961927031,0.5,238.73,238.57,43.776884]
[1731961927032,0.5,238.64,238.6,23.776884]
[1731961927233,0.5,238.64,238.62,12.66096575]
[1731961927433,1.0,238.64,238.62,12.66096575]
[1731961927752,1.0,238.64,238.57,27.2006]
[1731961927753,1.0,238.61,238.6,23.776884]
[1731961928071,0.5,238.56,238.55,12.66096575]
[1731961928243,0.5,238.5,238.49,20.23638129]
[1731961928444,0.5,238.47,238.46,14.6773]
[1731961928966,0.5,238.48,238.46,14.6773]
[1731961929460,0.5,238.52,238.47,20.23638129]
[1731961929669,0.5,238.52,238.46,14.6773]
[1731961929670,0.5,238.52,238.51,44.01326529]
[1731961929965,7.8101,238.65,238.52,23.776884]
[1731961929966,0.5,238.56,238.52,23.776884]
[1731961930163,0.5,238.54,238.53,43.776884]
[1731961930361,0.5,238.54,238.53,23.776884]
[1731961930757,1.0,238.55,238.54,23.776884]
[1731961930954,0.5,238.58,238.54,23.776884]
[1731961931265,0.5,238.57,238.55,20.23638129]
[1731961931466,0.5,238.58,238.57,20.23638129]
[1731961931767,0.5,238.58,238.57,44.01326529]
[1731961931951,0.5,238.58,238.56,14.6712]
[1731961932461,0.5,238.58,238.57,23.776884]
[1731961932955,0.5,238.58,238.57,44.01326529]
[1731961933271,0.5,238.62,238.58,20.0]
[1731961933569,0.5,238.62,238.61,23.776884]
[1731961933771,0.5,238.62,238.61,43.776884]
[1731961934545,0.5,238.68,238.63,23.776884]
[1731961934853,0.5,238.68,238.67,23.776884]
[1731961935052,0.5,238.68,238.67,44.01326529]
[1731961935369,0.5,238.7,238.68,14.6639]
[1731961935558,1.0,238.72,238.69,20.23638129]
[1731961935866,1.0,238.72,238.71,20.23638129]
[1731961936046,1.0,238.74,238.71,20.23638129]
[1731961936243,1.0,238.74,238.68,21.5252]
[1731961936244,1.0,238.74,238.73,20.23638129]
[1731961936639,0.5,238.74,238.73,44.01326529]
[1731961937475,0.5,238.74,238.73,48.20206529]
[1731961937770,1.0,238.76,238.74,23.776884]
[1731961938069,1.0,238.78,238.74,23.776884]
[1731961938246,0.5,238.83,238.79,20.0]
[1731961938443,0.5,238.85,238.83,23.776884]
[1731961938649,1.0,238.88,238.84,20.23638129]
[1731961938952,1.0,238.88,238.87,20.23638129]
[1731961939145,7.2608,238.99,238.81,20.23638129]
[1731961939146,1.0,238.84,238.81,20.23638129]
[1731961939348,1.0,238.78,238.75,20.23638129]
[1731961939649,1.0,238.74,238.73,10.472]
[1731961939842,0.5,238.7,238.69,24.42578129]
[1731961940041,0.5,238.7,238.67,10.4745]
[1731961940042,0.5,238.68,238.67,34.90068129]
[1731961940355,0.5,238.7,238.67,34.90068129]
[1731961940559,0.5,238.7,238.69,20.23638129]
[1731961940946,0.5,238.73,238.69,20.23638129]
[1731961941244,0.5,238.81,238.73,23.776884]
[1731961941442,0.5,238.81,238.8,20.23638129]
[1731961941647,0.5,238.81,238.8,44.01326529]
[1731961942051,0.5,238.83,238.81,23.776884]
[1731961942270,0.5,238.83,238.82,20.23638129]
[1731961942439,0.5,238.83,238.82,44.01326529]
[1731961943173,0.5,238.83,238.82,20.23638129]
[1731961943346,0.5,238.81,238.8,44.01326529]
[1731961943667,0.5,238.8,238.79,10.4694]
[1731961944162,1.0,238.75,238.74,24.42498129]
[1731961944371,20.23638129,238.81,238.68,20.23638129]
[1731961944372,0.5,238.69,238.68,20.23638129]
[1731961944876,1.0,238.69,238.68,20.23638129]
[1731961945048,1.0,238.69,238.67,14.6641]
[1731961945873,1.0,238.69,238.68,20.23638129]
[1731961946047,1.0,238.69,238.67,14.6641]
[1731961947260,1.0,238.69,238.67,10.4743]
[1731961947654,1.0,238.69,238.67,14.6641]
[1731961947855,1.0,238.69,238.67,10.4743]
[1731961948259,1.0,238.66,238.65,4.1902]
[1731961948655,1.0,238.63,238.62,10.4768]
[1731961948880,0.5,238.63,238.62,34.90388129]
[1731961949451,1.0,238.65,238.62,34.90388129]
[1731961949952,1.0,238.63,238.62,14.6675]
[1731961950462,1.0,238.63,238.62,34.90388129]
[1731961950670,0.5,238.63,238.62,34.90388129]
[1731961950980,1.0,238.65,238.63,23.776884]
[1731961951175,1.0,238.65,238.64,44.01326529]
[1731961951176,0.5,238.65,238.64,44.01326529]
[1731961951985,1.0,238.65,238.64,24.42678129]
[1731961952559,1.0,238.65,238.64,4.1904]
[1731961952755,1.0,238.65,238.62,30.71318129]
[1731961953080,1.0,238.63,238.62,10.4768]
[1731961953382,1.0,238.63,238.62,34.90388129]
[1731961953582,0.5,238.63,238.62,34.90388129]
[1731961953786,1.0,238.63,238.62,14.6675]
[1731961954082,1.0,238.63,238.62,34.90388129]
[1731961954483,1.0,238.66,238.62,34.90388129]
[1731961954783,1.0,238.63,238.62,34.90388129]
[1731961958086,1.0,238.63,238.62,10.4768]
[1731961958487,1.0,238.63,238.62,14.6675]
[1731961958712,1.0,238.63,238.62,34.90388129]
[1731961958917,1.0,238.63,238.62,58.68076529]
[1731961959397,0.5,238.65,238.62,58.68076529]
[1731961959599,1.0,238.65,238.64,20.23638129]
[1731961960117,0.5,238.67,238.66,4.19]
[1731961960311,0.5,238.69,238.67,23.776884]
[1731961960613,0.5,238.73,238.69,23.776884]
[1731961960820,0.5,238.7,238.69,23.776884]
[1731961961127,0.5,238.7,238.67,43.776884]
[1731961961830,0.5,238.7,238.66,35.6154]
[1731961961831,1.0,238.67,238.66,14.6651]
[1731961962042,1.0,238.67,238.66,34.90148129]
[1731961962334,0.5,238.69,238.66,34.90148129]
[1731961962509,1.0,238.71,238.68,20.23638129]
[1731961962709,1.0,238.71,238.7,20.23638129]
[1731961963413,1.0,238.69,238.68,20.23638129]
[1731961963728,1.0,238.67,238.66,34.90148129]
[1731961964511,0.5,238.67,238.66,34.90148129]
[1731961964706,1.0,238.67,238.66,34.90148129]
[1731961968140,0.5,238.71,238.67,23.776884]
[1731961968432,0.5,238.72,238.7,20.23638129]
[1731961968925,0.5,238.72,238.71,4.1891]
[1731961969629,0.5,238.71,238.7,10.4733]
[1731961969929,1.0,238.68,238.67,4.1897]
[1731961970309,1.0,238.68,238.66,30.71148129]
[1731961970528,1.0,238.68,238.66,10.4751]
[1731961970722,1.0,238.68,238.66,14.6651]
[1731961972932,0.5,238.68,238.67,44.01326529]
[1731961973112,0.5,238.69,238.68,23.776884]
[1731961975038,0.5,238.69,238.68,27.966584]
[1731961975440,1.69433631,238.87,238.69,44.027864]
[1731961975441,1.0,238.75,238.69,44.027864]
[1731961975619,0.5,238.75,238.74,20.23638129]
[1731961975818,0.5,238.8,238.74,64.26424529]
[1731961976044,0.5,238.81,238.8,23.776884]
[1731961976645,0.5,238.8,238.79,20.23638129]
[1731961976846,0.5,238.83,238.81,20.0]
[1731961977050,1.0,238.86,238.82,40.23638129]
[1731961977242,0.5,238.84,238.83,43.776884]
[1731961978031,38.29158129,238.96,238.83,43.776884]
[1731961978032,0.5,238.91,238.84,0.25098]
[1731961978232,0.5,238.91,238.9,44.01326529]
[1731961978433,1.0,238.91,238.9,44.01326529]
[1731961978942,1.0,238.91,238.9,48.19906529]
[1731961980117,1.0,238.91,238.9,24.42218129]
[1731961980944,1.0,238.91,238.9,20.23638129]
[1731961981125,1.0,238.91,238.9,24.42218129]
[1731961981331,0.5,238.91,238.9,48.19906529]
[1731961981526,0.5,238.91,238.9,68.19906529]
[1731961982047,1.0,238.98,238.94,20.0]
[1731961982253,0.5,238.98,238.97,64.01326529]
[1731961982920,0.5,238.98,238.97,44.01326529]
[1731961983122,0.5,238.99,238.97,20.23638129]
[1731961983320,7.2586,239.11,238.92,14.6492]
[1731961983321,0.5,238.94,238.93,20.23638129]
[1731961983952,0.5,238.94,238.92,14.6492]
[1731961984126,0.5,238.97,238.93,40.23638129]
[1731961984331,0.5,238.97,238.96,20.23638129]
[1731961984856,0.5,238.99,238.97,23.776884]
[1731961985146,0.5,239.03,239.0,23.776884]
[1731961985459,0.5,239.03,239.02,44.01326529]
[1731961985950,17.8325,239.15,239.02,44.01326529]
[1731961985951,0.5,239.07,239.03,43.776884]
[1731961986258,0.5,239.07,239.06,44.01326529]
[1731961987228,0.5,239.15,239.04,14.6419]
[1731961987229,0.5,239.05,239.04,14.6419]
[1731961987428,4.6818,239.13,239.04,14.6419]
[1731961987429,0.5,239.13,239.06,0.25098]
[1731961987642,0.5,239.17,239.13,43.776884]
[1731961987845,0.5,239.21,239.16,20.23638129]
[1731961988044,0.5,239.21,239.18,20.23638129]
[1731961988269,0.5,239.19,239.16,10.4529]
[1731961988435,0.5,239.17,239.16,30.68928129]
[1731961988754,0.5,239.23,239.06,0.75098]
[1731961988755,0.5,239.13,239.11,4.182]
[1731961990275,0.5,239.13,239.12,20.23638129]
[1731961991134,0.5,239.15,239.12,44.01326529]
[1731961991355,0.5,239.17,239.14,44.01326529]
[1731961991537,0.5,239.17,239.16,20.23638129]
[1731961992051,0.5,239.19,239.16,20.23638129]
[1731961992234,0.5,239.17,239.16,4.1813]
[1731961992557,0.5,239.17,239.16,20.23638129]
[1731961994555,0.5,239.18,239.17,14.6339]
[1731961994761,0.5,239.2,239.17,38.410784]
[1731961995053,0.5,239.22,239.2,23.776884]
[1731961995259,0.5,239.22,239.21,20.23638129]
[1731961995437,0.5,239.24,239.21,20.23638129]
[1731961995644,0.5,239.38,239.26,0.12549]
[1731961995867,0.5,239.4,239.37,20.23638129]
[1731961996039,0.5,239.4,239.39,20.23638129]
[1731961996233,0.5,239.38,239.3,23.902374]
[1731961996460,0.5,239.38,239.37,24.41398129]
[1731961998140,0.5,239.38,239.37,20.23638129]
[1731961998342,0.5,239.46,239.39,43.776884]
[1731961998545,0.5,239.46,239.45,20.23638129]
[1731961998739,0.5,239.5,239.45,20.23638129]
[1731961998935,0.5,239.48,239.46,0.83487488]
[1731961999169,0.5,239.46,239.44,20.0]
[1731961999339,0.5,239.46,239.45,40.23638129]
[1731961999956,0.5,239.46,239.45,20.23638129]
[1731962000265,0.04728558,239.52,239.45,20.23638129]
[1731962000266,0.5,239.47,239.45,20.23638129]
[1731962000556,0.04728558,239.52,239.48,43.776884]
[1731962000767,0.04728558,239.52,239.51,40.47276258]
[1731962000944,0.5,239.59,239.52,43.902374]
[1731962001153,0.38301319,239.59,239.58,44.01326529]
[1731962001665,0.88301319,239.59,239.58,20.23638129]
[1731962001872,0.5,239.63,239.58,40.47276258]
[1731962002065,0.5,239.65,239.63,23.776884]
[1731962002241,0.5,239.65,239.64,20.23638129]
[1731962002556,0.5,239.65,239.64,68.42254658]
[1731962002773,0.5,239.7,239.65,23.776884]
[1731962002951,0.5,239.67,239.65,23.776884]
[1731962003458,0.5,239.67,239.64,34.84158129]
[1731962003644,0.5,239.67,239.66,20.23638129]
[1731962004340,0.5,239.65,239.61,20.23638129]
[1731962004545,0.5,239.62,239.61,20.23638129]
[1731962004748,4.1717,239.71,239.58,10.4348]
[1731962004749,0.5,239.6,239.59,20.23638129]
[1731962004945,0.5,239.6,239.58,10.4348]
[1731962005164,0.5,239.6,239.58,14.6087]
[1731962005560,0.5,239.6,239.58,10.4348]
[1731962005858,0.5,239.5,239.49,20.23638129]
[1731962006270,0.5,239.5,239.48,4.1757]
[1731962006563,20.23638129,239.64,239.49,20.23638129]
[1731962006564,0.5,239.52,239.49,20.23638129]
[1731962006739,0.5,239.62,239.48,4.1757]
[1731962006740,0.5,239.56,239.51,20.23638129]
[1731962006944,0.5,239.61,239.56,23.776884]
[1731962007141,0.5,239.61,239.6,20.23638129]
[1731962007351,0.5,239.64,239.6,20.23638129]
[1731962007555,0.5,239.64,239.62,20.23638129]
[1731962007744,4.1713,239.73,239.62,20.23638129]
[1731962007745,0.5,239.66,239.62,20.23638129]
[1731962008063,0.5,239.67,239.66,23.776884]
[1731962008265,0.5,239.67,239.66,32.55987871]
[1731962008451,0.5,239.65,239.64,42.99167871]
[1731962008961,0.5,239.65,239.64,47.16447871]
[1731962009168,0.5,239.58,239.54,58.388084]
[1731962009372,0.5,239.58,239.57,32.55987871]
[1731962010237,0.5,239.58,239.55,32.55987871]
[1731962010458,0.5,239.58,239.55,36.73417871]
[1731962011250,0.5,239.56,239.55,32.55987871]
[1731962011638,0.5,239.56,239.51,32.55987871]
[1731962011858,0.5,239.52,239.51,32.55987871]
[1731962012439,0.5,239.56,239.52,14.6125]
[1731962012641,0.5,239.56,239.55,32.55987871]